bitfinex-derivatives/quotes_ETHF0:USTF0_20250430
["timestamp","ask_amount","ask_price","bid_price","bid_amount"]
[1746045342009,13.04794,1803.1,1802.2,1.10969]
[1746045342010,1.10955,1802.5,1802.2,1.10969]
[1746045342202,3.2078,1802.3,1802.2,1.7386]
[1746045342712,4.31743,1802.3,1802.2,1.7386]
[1746045343808,1.10978,1802.1,1801.6,3.2078]
[1746045344014,3.2078,1802.0,1801.9,1.10988]
[1746045344310,3.2078,1802.0,1801.9,41.90988]
[1746045344512,3.2078,1802.0,1801.9,40.8]
[1746045344710,3.2078,1802.0,1801.9,41.90988]
[1746045344899,3.2078,1802.0,1801.9,46.90988]
[1746045345105,3.2078,1802.0,1801.9,41.90988]
[1746045345306,4.31762,1802.0,1801.9,44.628]
[1746045345708,3.2078,1802.0,1801.9,45.73788]
[1746045346213,3.2078,1802.0,1801.9,41.90988]
[1746045347916,3.2078,1802.0,1801.9,46.90988]
[1746045348117,3.2078,1802.3,1802.2,1.10967]
[1746045349316,3.2078,1802.6,1802.5,1.10949]
[1746045350514,4.31725,1802.6,1802.5,1.10949]
[1746045350714,3.2078,1802.6,1802.5,1.10949]
[1746045350915,4.31725,1802.6,1802.5,1.10949]
[1746045351115,1.10956,1802.5,1802.3,3.9716]
[1746045351314,1.10956,1802.5,1802.3,2.8233]
[1746045351515,1.10956,1802.5,1802.3,1.1096]
[1746045351815,1.10968,1802.3,1802.1,6.93971]
[1746045352016,1.10968,1802.3,1801.9,43.57464]
[1746045352316,1.10968,1802.3,1801.9,47.40264]
[1746045352504,1.10971,1802.2,1801.9,44.628]
[1746045352817,4.31755,1802.2,1802.0,1.10977]
[1746045353308,1.10976,1802.1,1802.0,1.10977]
[1746045353511,4.31753,1802.2,1801.9,44.628]
[1746045353711,4.31753,1802.2,1802.0,1.10977]
[1746045353911,1.10976,1802.1,1802.0,1.10977]
[1746045354917,1.10982,1802.0,1801.9,40.8]
[1746045355218,4.31762,1802.0,1801.9,44.628]
[1746045355919,9.31762,1802.0,1801.9,3.828]
[1746045356109,1.11,1801.7,1801.6,1.11005]
[1746045356309,4.3178,1801.7,1801.6,1.11005]
[1746045356509,4.3178,1801.7,1801.6,41.91005]
[1746045356918,3.2078,1801.7,1801.6,41.91005]
[1746045357417,4.3178,1801.7,1801.6,41.91005]
[1746045357619,3.2078,1801.7,1801.6,41.91005]
[1746045359920,3.734,1801.9,1801.8,1.10994]
[1746045360417,3.2078,1802.0,1801.9,1.10988]
[1746045360921,2.7741,1802.3,1801.9,1.10988]
[1746045360922,3.2078,1802.4,1801.9,2.77468]
[1746045361117,4.31751,1802.2,1802.1,1.10971]
[1746045361320,1.10982,1802.0,1801.9,3.828]
[1746045361523,8.05262,1802.0,1801.9,3.828]
[1746045361714,13.05262,1802.0,1801.9,3.828]
[1746045362119,1.11013,1801.5,1801.4,1.11016]
[1746045362423,3.2078,1801.5,1801.4,1.11016]
[1746045363125,3.2078,1801.5,1801.4,4.93816]
[1746045365821,3.2078,1801.7,1801.6,1.11006]
[1746045366826,4.31768,1801.9,1801.8,1.10994]
[1746045367126,3.2078,1801.9,1801.8,1.10994]
[1746045367427,3.2078,1802.1,1802.0,1.10982]
[1746045369725,4.31756,1802.1,1802.0,1.10982]
[1746045369928,3.2078,1802.1,1802.0,1.10982]
[1746045372128,4.31756,1802.1,1802.0,1.10982]
[1746045374429,1.10986,1802.0,1801.9,1.10983]
[1746045374827,4.3176,1802.1,1802.0,1.10982]
[1746045375831,1.10989,1802.0,1801.9,1.10985]
[1746045376024,1.11001,1801.8,1801.7,1.10997]
[1746045376224,4.31781,1801.8,1801.7,1.10997]
[1746045378031,1.11004,1801.7,1801.6,1.11002]
[1746045378734,4.3178,1801.8,1801.7,1.11]
[1746045378926,4.31774,1801.8,1801.7,1.11]
[1746045382133,3.2078,1801.8,1801.7,1.11]
[1746045382637,4.31774,1801.8,1801.7,1.11]
[1746045385539,2.77508,1801.7,1801.2,40.8]
[1746045385743,3.2078,1801.5,1801.3,1.11023]
[1746045385931,4.31797,1801.5,1801.3,1.11023]
[1746045386440,3.2078,1801.5,1801.3,1.11023]
[1746045387039,4.31797,1801.5,1801.3,1.11023]
[1746045387532,3.2078,1801.5,1801.4,1.11019]
[1746045387739,1.1104,1801.1,1800.9,5.83]
[1746045387933,4.31815,1801.2,1801.0,1.11039]
[1746045388243,1.11041,1801.1,1800.9,4.93845]
[1746045388439,4.31823,1801.0,1800.9,3.828]
[1746045388838,3.2078,1801.0,1800.9,4.9385]
[1746045389135,4.31823,1801.0,1800.9,3.828]
[1746045389339,8.15523,1801.0,1800.9,3.828]
[1746045390239,8.15523,1801.0,1800.9,2.6975]
[1746045391139,8.15523,1801.0,1800.9,3.7522]
[1746045391438,1.11067,1800.7,1800.5,40.8]
[1746045391642,3.2078,1800.7,1800.6,4.86286]
[1746045393642,3.2078,1800.7,1800.6,9.86286]
[1746045393936,7.0448,1801.0,1800.9,1.1105]
[1746045394150,3.837,1801.0,1800.9,1.1105]
[1746045394346,4.31813,1801.2,1801.1,1.11037]
[1746045394347,3.2078,1801.2,1801.1,1.11037]
[1746045394643,4.31811,1801.2,1801.1,1.11037]
[1746045395140,1.11031,1801.2,1801.0,6.56698]
[1746045395347,4.31803,1801.4,1801.0,6.60408]
[1746045395534,1.11026,1801.3,1801.2,1.11027]
[1746045395734,1.11025,1801.3,1801.2,1.11027]
[1746045396230,4.31802,1801.4,1801.3,1.11025]
[1746045396433,4.31802,1801.4,1801.3,2.18525]
[1746045396838,1.11018,1801.5,1801.3,2.18525]
[1746045397036,1.11019,1801.4,1801.3,2.1852]
[1746045397235,1.11019,1801.4,1801.3,4.903]
[1746045397438,1.11019,1801.4,1801.3,3.828]
[1746045397836,4.83939,1801.4,1801.3,3.828]
[1746045398234,1.11031,1801.2,1801.1,1.075]
[1746045398438,4.31811,1801.2,1801.1,1.075]
[1746045398637,2.77603,1801.1,1800.8,1.11054]
[1746045398838,1.11055,1800.9,1800.8,1.11053]
[1746045399037,1.11062,1800.7,1800.6,2.25094]
[1746045400445,1.1106,1800.8,1800.7,1.11058]
[1746045401041,1.11062,1800.7,1800.6,2.25096]
[1746045402942,7.77657,1800.7,1800.3,3.2078]
[1746045403142,1.11087,1800.3,1800.2,1.052]
[1746045403451,1.11087,1800.3,1800.2,41.852]
[1746045403641,1.11087,1800.3,1800.2,1.052]
[1746045403949,1.11087,1800.3,1800.2,2.16293]
[1746045404248,1.11087,1800.3,1800.2,46.79093]
[1746045404444,1.11083,1800.4,1800.3,1.11087]
[1746045405150,1.11104,1800.1,1800.0,1.11104]
[1746045405451,3.2078,1800.3,1800.2,1.11093]
[1746045406040,3.2078,1800.3,1800.2,3.94343]
[1746045406243,1.11066,1800.7,1800.3,2.77717]
[1746045406452,1.11068,1800.6,1800.5,4.31849]
[1746045406951,1.11068,1800.6,1800.5,1.11069]
[1746045407149,1.11068,1800.6,1800.5,4.93869]
[1746045407542,1.11068,1800.6,1800.5,3.828]
[1746045407851,1.11068,1800.6,1800.5,4.93874]
[1746045408051,1.11068,1800.6,1800.5,6.56524]
[1746045408252,1.11068,1800.6,1800.5,1.6265]
[1746045408852,1.11068,1800.6,1800.5,2.73724]
[1746045410049,1.11067,1800.7,1800.6,1.11063]
[1746045410254,1.11067,1800.7,1800.6,2.23333]
[1746045410456,4.9216,1800.8,1800.7,1.11062]
[1746045410755,4.9216,1800.8,1800.7,2.20772]
[1746045411153,4.9216,1800.8,1800.7,6.03572]
[1746045411649,1.1106,1800.8,1800.7,6.03572]
[1746045412152,3.2078,1800.9,1800.8,1.11056]
[1746045412454,3.811,1801.0,1800.9,1.1105]
[1746045412455,4.92145,1801.0,1800.9,1.1105]
[1746045412647,4.92135,1801.2,1801.1,1.11031]
[1746045412847,3.811,1801.2,1801.1,1.11031]
[1746045413252,3.811,1801.2,1801.1,2.23321]
[1746045414154,1.11023,1801.4,1801.3,1.11025]
[1746045414754,4.31799,1801.4,1801.2,1.11025]
[1746045414952,3.2078,1801.4,1801.2,1.11025]
[1746045415159,1.11025,1801.3,1801.2,4.93825]
[1746045415355,1.11025,1801.3,1801.2,3.828]
[1746045415557,1.11025,1801.3,1801.2,45.73831]
[1746045415956,5.91673,1801.4,1801.3,1.11025]
[1746045416151,4.31803,1801.4,1801.3,1.11025]
[1746045417459,1.11025,1801.3,1801.2,41.91025]
[1746045417960,4.31804,1801.4,1801.3,1.11025]
[1746045418156,3.2078,1801.4,1801.3,1.11025]
[1746045419160,4.31799,1801.4,1801.3,1.11025]
[1746045420061,1.11031,1801.2,1801.1,4.3307]
[1746045420261,1.11031,1801.2,1801.1,5.44107]
[1746045420461,1.11031,1801.2,1801.1,46.24107]
[1746045420663,2.70841,1801.2,1801.1,3.2078]
[1746045420862,2.70841,1801.2,1801.1,4.31817]
[1746045421360,2.70841,1801.2,1801.1,3.2078]
[1746045421560,3.74341,1801.2,1801.1,3.2078]
[1746045422464,3.74341,1801.2,1801.1,4.31817]
[1746045423060,3.2078,1801.4,1801.1,7.09403]
[1746045423266,1.11029,1801.3,1801.2,1.11025]
[1746045424867,4.31801,1801.4,1801.3,1.11025]
[1746045425271,4.31801,1801.4,1801.3,4.93825]
[1746045426166,4.31801,1801.4,1801.3,1.11025]
[1746045426866,4.31801,1801.4,1801.3,2.15725]
[1746045428168,4.31801,1801.4,1801.3,5.98525]
[1746045428870,4.31801,1801.4,1801.3,7.11575]
[1746045429572,3.2078,1801.4,1801.3,7.11575]
[1746045429766,4.31799,1801.4,1801.3,7.11575]
[1746045430268,3.2078,1801.4,1801.3,7.11575]
[1746045430864,4.31799,1801.4,1801.3,7.11575]
[1746045431060,3.2078,1801.4,1801.3,7.11575]
[1746045431267,4.31799,1801.4,1801.3,7.11575]
[1746045433572,3.2078,1801.4,1801.3,7.11575]
[1746045433777,3.811,1801.5,1801.4,1.11019]
[1746045434066,4.92113,1801.5,1801.4,2.69869]
[1746045435373,4.92113,1801.5,1801.4,6.52669]
[1746045436273,1.11002,1801.7,1801.6,1.11006]
[1746045437373,1.11006,1801.6,1801.5,1.7458]
[1746045437575,3.41126,1801.6,1801.5,1.7458]
[1746045437874,3.41126,1801.6,1801.5,2.85593]
[1746045438173,3.41126,1801.6,1801.5,1.7458]
[1746045438471,3.41126,1801.6,1801.5,2.85593]
[1746045439673,3.41126,1801.6,1801.5,1.7458]
[1746045439975,3.41126,1801.6,1801.5,2.85593]
[1746045440375,2.28146,1801.6,1801.5,2.85593]
[1746045440569,1.11006,1801.6,1801.5,2.85593]
[1746045441177,1.11006,1801.6,1801.5,1.7458]
[1746045441369,2.68536,1801.6,1801.5,1.7458]
[1746045441569,3.75056,1801.6,1801.5,1.7458]
[1746045442071,3.75056,1801.6,1801.5,2.85593]
[1746045442477,3.75056,1801.6,1801.5,1.7458]
[1746045445182,2.70797,1801.2,1801.1,1.5924]
[1746045445882,1.11037,1801.2,1801.1,2.70277]
[1746045446580,1.11037,1801.2,1801.1,1.5924]
[1746045447082,5.0,1801.2,1800.3,3.2078]
[1746045447282,1.11073,1800.6,1800.5,1.11073]
[1746045447482,6.9698,1800.8,1800.3,3.84802]
[1746045447681,8.08037,1800.8,1800.7,1.11062]
[1746045447883,6.9698,1800.8,1800.7,1.11062]
[1746045448473,3.762,1800.8,1800.7,1.11062]
[1746045448879,4.31818,1801.1,1801.0,1.11043]
[1746045449280,4.31818,1801.1,1800.9,1.11045]
[1746045449573,4.31818,1801.1,1801.0,2.6895]
[1746045450287,4.31818,1801.1,1801.0,3.79993]
[1746045450585,3.2078,1801.1,1801.0,3.79993]
[1746045451285,3.2078,1801.1,1801.0,7.62793]
[1746045451590,4.31817,1801.1,1801.0,7.62793]
[1746045452182,3.2078,1801.1,1801.0,7.62793]
[1746045454090,4.31817,1801.1,1801.0,7.62793]
[1746045454299,1.11037,1801.1,1801.0,7.62793]
[1746045456199,1.11037,1801.1,1801.0,6.5175]
[1746045456493,4.31817,1801.1,1801.0,6.5175]
[1746045457098,4.31817,1801.1,1801.0,2.6895]
[1746045458585,4.31817,1801.1,1801.0,1.6048]
[1746045458793,5.91737,1801.1,1801.0,1.6048]
[1746045459799,4.31817,1801.1,1801.0,2.71523]
[1746045460391,3.2078,1801.1,1801.0,2.71523]
[1746045460591,4.31817,1801.1,1801.0,2.71523]
[1746045461395,4.31817,1801.1,1801.0,1.6048]
[1746045461596,4.31817,1801.1,1801.0,2.71523]
[1746045462601,4.31817,1801.1,1801.0,1.6048]
[1746045464895,5.91727,1801.1,1801.0,1.6048]
[1746045467206,4.31817,1801.1,1801.0,1.6048]
[1746045467401,4.31817,1801.1,1801.0,2.71523]
[1746045468000,9.31817,1801.1,1801.0,1.6048]
[1746045468209,1.1105,1800.9,1800.8,1.11051]
[1746045468410,1.1105,1800.9,1800.8,1.96801]
[1746045468810,1.11047,1801.0,1800.9,1.11043]
[1746045469907,1.11047,1801.0,1800.9,2.80453]
[1746045470408,3.2078,1801.1,1801.0,1.11043]
[1746045470409,4.31822,1801.1,1801.0,1.11043]
[1746045470606,4.31822,1801.1,1801.0,2.80453]
[1746045471107,4.31822,1801.1,1801.0,6.63253]
[1746045472111,4.31822,1801.1,1801.0,2.80453]
[1746045472311,4.31822,1801.1,1801.0,1.6941]
[1746045473003,4.31822,1801.1,1801.0,2.80453]
[1746045473510,4.31822,1801.1,1801.0,1.6941]
[1746045474813,4.31822,1801.1,1801.0,2.80453]
[1746045475112,4.31822,1801.1,1801.0,1.6941]
[1746045477319,1.1105,1800.9,1800.8,0.8575]
[1746045477616,1.1105,1800.9,1800.8,3.64986]
[1746045478516,1.1105,1800.9,1800.8,2.5393]
[1746045479116,1.1105,1800.9,1800.8,7.47786]
[1746045481119,4.3183,1800.9,1800.8,6.3673]
[1746045481314,8.0663,1800.9,1800.8,3.828]
[1746045481515,9.9898,1800.9,1800.8,3.828]
[1746045482222,1.11056,1800.8,1800.7,1.6186]
[1746045483122,2.71036,1800.8,1800.7,1.6186]
[1746045483422,1.11062,1800.7,1800.6,0.8483]
[1746045483622,6.04942,1800.7,1800.6,0.8483]
[1746045483824,1.1108,1800.4,1800.3,0.8121]
[1746045484220,1.1108,1800.4,1800.3,45.4401]
[1746045485122,1.1108,1800.4,1800.3,41.6121]
[1746045486125,1.1108,1800.4,1800.3,46.2545]
[1746045487629,1.1108,1800.4,1800.3,47.9091]
[1746045489629,1.1108,1800.4,1800.3,7.1091]
[1746045489832,4.3186,1800.4,1800.3,7.1091]
[1746045490030,5.8967,1800.4,1800.3,7.1091]
[1746045490224,5.8967,1800.4,1800.3,47.9091]
[1746045490732,5.8967,1800.4,1800.3,7.1091]
[1746045491125,5.8967,1800.4,1800.3,3.2811]
[1746045491631,5.8967,1800.4,1800.3,0.8144]
[1746045492029,1.11093,1800.2,1800.1,2.4785]
[1746045492232,8.06773,1800.2,1800.1,2.4785]
[1746045493126,9.69733,1800.2,1800.1,2.4785]
[1746045494221,9.69733,1800.2,1799.9,40.8]
[1746045494426,1.11117,1799.8,1799.7,2.5378]
[1746045494934,4.86017,1799.8,1799.7,2.5378]
[1746045496131,4.86017,1799.8,1799.7,6.3658]
[1746045497033,4.86017,1799.8,1799.7,7.47704]
[1746045497626,3.749,1799.8,1799.7,7.47704]
[1746045498027,4.3189,1800.0,1799.9,1.11111]
[1746045498229,8.0659,1800.0,1799.9,1.11111]
[1746045498835,6.9548,1800.0,1799.9,1.11111]
[1746045499233,6.9548,1800.0,1799.9,4.93911]
[1746045500336,8.06585,1800.0,1799.9,4.93911]
[1746045501335,4.85805,1800.0,1799.9,4.93911]
[1746045504037,3.747,1800.0,1799.9,4.93911]
[1746045504237,4.85805,1800.0,1799.9,4.93911]
[1746045506338,4.85805,1800.0,1799.9,3.828]
[1746045506537,4.85805,1800.0,1799.9,4.93911]
[1746045506738,4.85805,1800.0,1799.9,6.56471]
[1746045508637,4.85805,1800.0,1799.9,5.4536]
[1746045510038,6.48505,1800.0,1799.9,3.828]
[1746045510240,1.11117,1799.8,1799.7,3.68662]
[1746045511139,1.11117,1799.8,1799.7,7.51462]
[1746045511441,1.11117,1799.8,1799.7,5.5747]
[1746045511944,1.11117,1799.8,1799.7,3.828]
[1746045512141,1.11124,1799.7,1799.6,0.7945]
[1746045512440,4.85924,1799.7,1799.6,3.6303]
[1746045512838,4.85924,1799.7,1799.6,2.519]
[1746045513638,4.85924,1799.7,1799.6,3.6303]
[1746045514645,4.85924,1799.7,1799.6,2.519]
[1746045515646,4.85924,1799.7,1799.6,3.6303]
[1746045517048,4.85924,1799.7,1799.6,2.519]
[1746045517550,4.85521538,1799.7,1799.6,2.519]
[1746045517948,4.85521538,1799.7,1799.6,3.6303]
[1746045525453,1.1113,1799.6,1799.5,4.93936]
[1746045525656,4.85929,1799.7,1799.6,1.1113]
[1746045526359,1.11129,1799.7,1799.6,1.1113]
[1746045526657,4.85529,1799.7,1799.6,1.1113]
[1746045526859,4.85529,1799.7,1799.6,4.4378]
[1746045528453,4.85529,1799.7,1799.6,3.3265]
[1746045531261,4.85529,1799.7,1799.6,4.4378]
[1746045532260,4.85529,1799.7,1799.6,3.3265]
[1746045532661,4.85529,1799.7,1799.6,4.4378]
[1746045533166,4.85529,1799.7,1799.6,3.3265]
[1746045533655,6.60589,1799.7,1799.6,3.3265]
[1746045536363,6.60589,1799.7,1799.6,4.4378]
[1746045536661,3.744,1799.7,1799.6,4.4378]
[1746045537151,4.85524,1799.7,1799.6,4.4378]
[1746045537462,3.744,1799.7,1799.6,4.4378]
[1746045538961,4.85524,1799.7,1799.6,4.4378]
[1746045539162,3.744,1799.7,1799.6,4.4378]
[1746045540763,4.85524,1799.7,1799.6,4.4378]
[1746045543964,4.85524,1799.7,1799.6,3.3265]
[1746045544165,4.85524,1799.7,1799.6,4.4378]
[1746045544968,6.59094,1799.7,1799.6,4.4378]
[1746045545662,6.59094,1799.7,1799.6,2.5146]
[1746045546162,6.59094,1799.7,1799.6,1.6718]
[1746045546366,9.79874,1799.7,1799.6,1.6718]
[1746045547266,8.6875,1799.7,1799.4,2.82117]
[1746045547565,1.11136,1799.5,1799.4,4.50587]
[1746045548370,1.11136,1799.5,1799.4,8.33387]
[1746045549459,2.84704,1799.6,1799.5,1.11136]
[1746045549659,2.84704,1799.6,1799.5,2.71346]
[1746045550159,2.84704,1799.6,1799.5,6.54146]
[1746045550566,2.84704,1799.6,1799.5,5.4301]
[1746045552074,2.84704,1799.6,1799.5,1.6021]
[1746045554072,2.84704,1799.6,1799.5,5.4301]
[1746045555775,10.18450678,1799.6,1799.5,5.4301]
[1746045556169,15.18450678,1799.6,1799.5,1e-08]
[1746045556368,1.11161,1799.1,1799.0,2.4753]
[1746045556572,1.11161,1799.1,1799.0,3.58697]
[1746045556765,1.11143,1799.5,1799.2,2.77887]
[1746045557071,4.85043,1799.5,1799.4,1.1114]
[1746045557274,1.11142,1799.4,1799.3,4.34233]
[1746045557977,1.11142,1799.4,1799.3,3.2309]
[1746045558274,1.11142,1799.4,1799.3,7.0589]
[1746045558874,1.11142,1799.4,1799.3,8.17038]
[1746045559572,1.11142,1799.4,1799.3,6.57428]
[1746045559872,1.11142,1799.4,1799.3,5.4628]
[1746045560072,1.11142,1799.4,1799.3,1.6348]
[1746045560275,4.31922,1799.4,1799.3,2.74628]
[1746045561166,4.31922,1799.4,1799.3,6.57428]
[1746045561865,4.31922,1799.4,1799.3,5.4628]
[1746045563173,1.11142,1799.4,1799.3,6.57428]
[1746045563671,4.85038,1799.5,1799.4,1.11142]
[1746045563878,4.85038,1799.5,1799.4,3.60462]
[1746045564078,4.85038,1799.5,1799.4,7.43262]
[1746045565379,7.33746678,1799.6,1799.5,1.11136]
[1746045565583,7.33746678,1799.6,1799.5,11.82656]
[1746045566174,7.33746678,1799.6,1799.5,15.65456]
[1746045567278,8.44876678,1799.6,1799.5,9.5432]
[1746045567580,8.44876678,1799.6,1799.5,6.3354]
[1746045567778,10.11866678,1799.6,1799.5,6.3354]
[1746045567980,10.11866678,1799.6,1799.5,7.44676]
[1746045568280,13.32646678,1799.6,1799.5,2.5074]
[1746045568586,1.11136,1799.5,1799.4,1.93987]
[1746045568775,2.80666,1799.5,1799.4,1.93987]
[1746045569280,2.80666,1799.5,1799.4,7.39497]
[1746045569581,1.11136,1799.5,1799.4,7.39497]
[1746045571583,4.31916,1799.5,1799.4,7.39497]
[1746045574488,8.44880678,1799.6,1799.5,1.11136]
[1746045574682,8.44880678,1799.6,1799.5,2.85726]
[1746045575088,1.11134,1799.6,1799.5,6.68526]
[1746045575587,15.39554678,1799.7,1799.6,1.1113]
[1746045575776,15.39554678,1799.7,1799.6,4.495]
[1746045576689,15.39554678,1799.7,1799.6,3.3837]
[1746045577189,1.1113,1799.6,1799.5,4.93932]
[1746045577982,1.1113,1799.6,1799.5,6.53442]
[1746045578286,8.5341,1799.7,1799.6,1.1113]
[1746045578287,9.64539,1799.7,1799.6,1.1113]
[1746045578486,8.05809,1799.7,1799.6,3.5069]
[1746045582491,6.9468,1799.7,1799.6,3.5069]
[1746045582994,8.05804,1799.7,1799.6,3.5069]
[1746045587697,6.9468,1799.7,1799.6,3.5069]
[1746045587897,7.33746678,1799.8,1799.7,1.11124]
[1746045588089,7.33746678,1799.8,1799.7,3.60294]
[1746045589093,7.33746678,1799.8,1799.7,7.43094]
[1746045589996,8.44863678,1799.8,1799.7,7.43094]
[1746045590700,7.33746678,1799.8,1799.7,7.43094]
[1746045590896,1.11117,1799.8,1799.7,7.43094]
[1746045591501,8.05196,1799.9,1799.8,1.11117]
[1746045591691,8.05196,1799.9,1799.8,3.53147]
[1746045592199,8.05196,1799.9,1799.8,7.35947]
[1746045592596,8.05196,1799.9,1799.8,6.2483]
[1746045592793,8.05196,1799.9,1799.8,7.35947]
[1746045592989,8.05196,1799.9,1799.8,4.93917]
[1746045593202,9.64676,1799.9,1799.8,4.93917]
[1746045593897,9.64676,1799.9,1799.8,6.53217]
[1746045595201,9.64676,1799.9,1799.8,3.828]
[1746045595402,14.97086,1799.9,1799.8,3.828]
[1746045596201,1.11124,1799.7,1799.6,1.11129]
[1746045596403,1.11124,1799.7,1799.6,2.70879]
[1746045598100,1.11124,1799.7,1799.6,1.5975]
[1746045598300,1.11124,1799.7,1799.6,2.7088]
[1746045598702,1.61,1799.7,1799.6,2.7088]
[1746045598898,8.44868678,1799.8,1799.7,1.11124]
[1746045599097,8.44868678,1799.8,1799.7,3.52354]
[1746045599703,8.44868678,1799.8,1799.7,2.4123]
[1746045600096,8.44868678,1799.8,1799.7,6.2403]
[1746045600502,10.16588678,1799.8,1799.7,6.2403]
[1746045600805,10.16588678,1799.8,1799.7,5.4255]
[1746045601704,15.48948678,1799.8,1799.7,3.828]
[1746045602202,1.1113,1799.6,1799.5,3.65112]
[1746045602402,4.8443,1799.6,1799.5,1.7443]
[1746045602597,1.11146,1799.4,1799.2,0.8543]
[1746045602799,1.11141,1799.5,1799.4,1.11138]
[1746045603100,1.11142,1799.4,1799.3,2.69594]
[1746045604105,1.11142,1799.4,1799.3,6.52394]
[1746045605405,1.11141,1799.5,1799.4,1.11137]
[1746045605706,1.11141,1799.5,1799.4,1.6776]
[1746045606208,1.11141,1799.5,1799.4,5.5056]
[1746045606401,1.11141,1799.5,1799.4,6.61702]
[1746045606601,1.11141,1799.5,1799.4,5.5056]
[1746045607207,1.11141,1799.5,1799.4,6.61702]
[1746045607508,1.11141,1799.5,1799.4,5.5056]
[1746045608606,1.11141,1799.5,1799.4,6.61702]
[1746045609406,1.11141,1799.5,1799.4,5.5056]
[1746045610102,1.11141,1799.5,1799.4,6.61702]
[1746045614116,7.33746678,1799.6,1799.5,1.11136]
[1746045614409,9.19142011,1799.8,1799.7,1.11124]
[1746045614611,9.19142011,1799.8,1799.7,4.31904]
[1746045614910,8.88127689,1799.8,1799.7,9.31904]
[1746045615114,8.88127689,1799.8,1799.7,13.14704]
[1746045616211,8.88127689,1799.8,1799.7,53.94704]
[1746045616412,1.11111,1799.9,1799.8,1.11117]
[1746045616606,1.11111,1799.9,1799.8,3.73297]
[1746045617118,1.11111,1799.9,1799.8,48.36097]
[1746045620225,1.11109,1800.0,1799.9,1.11105]
[1746045620522,1.11109,1800.0,1799.9,2.72495]
[1746045621224,1.11109,1800.0,1799.9,6.55295]
[1746045621927,4.31883,1800.1,1800.0,1.11105]
[1746045622230,4.31883,1800.1,1800.0,2.75185]
[1746045623126,4.31883,1800.1,1800.0,6.57985]
[1746045624723,8.04467,1800.3,1800.0,6.57985]
[1746045624924,6.9338,1800.3,1800.2,1.11093]
[1746045625324,6.9338,1800.3,1800.2,2.84293]
[1746045625825,8.04467,1800.3,1800.2,2.84293]
[1746045626028,6.9338,1800.5,1800.4,1.1108]
[1746045626526,8.04454,1800.5,1800.4,1.1108]
[1746045626825,8.04454,1800.5,1800.4,2.7495]
[1746045627325,3.726,1800.5,1800.4,6.5775]
[1746045628330,4.83674,1800.5,1800.4,6.5775]
[1746045629732,3.726,1800.5,1800.4,6.5775]
[1746045637824,3.726,1800.5,1800.4,8.2244]
[1746045649044,1.11069,1800.6,1800.5,1.11074]
[1746045649240,1.11069,1800.6,1800.5,2.73704]
[1746045649435,6.11069,1800.6,1800.5,2.73704]
[1746045649739,1.11074,1800.5,1800.4,3.828]
[1746045649937,1.11093,1800.2,1800.1,4.31875]
[1746045650142,4.82893,1800.2,1800.1,4.31875]
[1746045651145,3.718,1800.2,1800.1,4.31875]
[1746045651345,3.718,1800.2,1800.1,6.05945]
[1746045652343,3.718,1800.2,1800.1,2.85165]
[1746045652645,4.82893,1800.2,1800.1,2.85165]
[1746045652844,6.44423,1800.2,1800.1,2.85165]
[1746045653144,6.44423,1800.2,1800.1,1.11095]
[1746045653443,1.11099,1800.1,1800.0,3.828]
[1746045653747,3.84179,1800.1,1800.0,3.828]
[1746045653945,8.84179,1800.1,1800.0,3.828]
[1746045654140,3.84179,1800.1,1800.0,4.93905]
[1746045654341,3.84179,1800.1,1800.0,1.11105]
[1746045655645,1.11105,1800.0,1799.9,5.94456]
[1746045656049,2.78645,1800.0,1799.9,4.31886]
[1746045656346,2.78645,1800.0,1799.9,8.14686]
[1746045656542,2.78645,1800.0,1799.9,7.0358]
[1746045657448,2.78645,1800.0,1799.9,3.828]
[1746045657647,10.99425,1800.0,1799.9,3.828]
[1746045658345,1.11117,1799.8,1799.7,40.8]
[1746045658546,4.82917,1799.8,1799.7,40.8]
[1746045658942,5.97927,1799.8,1799.7,40.8]
[1746045660340,5.65537,1799.8,1799.7,40.8]
[1746045664244,5.65537,1799.8,1799.7,44.628]
[1746045665143,5.65537,1799.8,1799.7,42.5426]
[1746045665338,4.82917,1799.8,1799.7,44.47044]
[1746045665847,4.82917,1799.8,1799.7,43.3592]
[1746045666155,4.82917,1799.8,1799.7,47.1872]
[1746045666546,6.55477,1799.8,1799.7,47.1872]
[1746045666947,6.55477,1799.8,1799.7,44.628]
[1746045667152,1.11124,1799.7,1799.6,0.8234]
[1746045667355,2.83684,1799.7,1799.6,2.4716]
[1746045667545,2.83684,1799.7,1799.6,43.2716]
[1746045669045,1.1113,1799.6,1799.5,3.828]
[1746045669245,2.83694,1799.6,1799.5,1.11136]
[1746045669457,1.11134,1799.6,1799.5,43.55956]
[1746045669955,1.11134,1799.6,1799.5,2.75956]
[1746045670249,1.11126,1799.7,1799.6,1.11124]
[1746045670455,1.11126,1799.7,1799.6,2.82224]
[1746045673154,1.11126,1799.7,1799.6,1.711]
[1746045673360,1.11136,1799.5,1799.4,2.77478]
[1746045673560,1.11136,1799.5,1799.4,43.57478]
[1746045674259,1.11136,1799.5,1799.4,47.40278]
[1746045677366,2.76246,1799.5,1799.4,47.40278]
[1746045677767,1.11136,1799.5,1799.4,47.40278]
[1746045681661,1.11136,1799.5,1799.4,46.2914]